[Event "Titled Tuesday Blitz April 18 Early 2023"]
[White "Harshad S"]
[Black "Prieto Aranguren, Alain"]
[WhiteFideId "46616551"]
[BlackFideId "2268906"]
[WhiteElo "2163"]
[BlackElo "2209"]
[Result "1-0"]
[Round "02"]
[TimeControl "180+2"]
[Date "2023.04.18"]
[WhiteClock "0:00:11"]
[BlackClock "0:00:01"]

1. e4 {[%clk 0:02:58]}  c6 {[%clk 0:02:57]} 2. Nc3 {[%clk 0:02:57]}  d5 {[%clk 0:02:57]} 3. Nf3 {[%clk 0:02:58]}  Bg4 {[%clk 0:02:57]} 4. h3 {[%clk 0:02:57]}  Bh5 {[%clk 0:02:57]} 5. d4 {[%clk 0:02:54]}  e6 {[%clk 0:02:57]} 6. Be2 {[%clk 0:02:52]}  Nf6 {[%clk 0:02:57]} 7. e5 {[%clk 0:02:51]}  Ne4 {[%clk 0:02:57]} 8. O-O {[%clk 0:02:49]}  Nxc3 {[%clk 0:02:51]} 9. bxc3 {[%clk 0:02:49]}  Be7 {[%clk 0:02:51]} 10. Rb1 {[%clk 0:02:48]}  Qc8 {[%clk 0:02:48]} 11. Bf4 {[%clk 0:02:47]}  Nd7 {[%clk 0:02:48]} 12. Qd2 {[%clk 0:02:45]}  O-O {[%clk 0:02:47]} 13. Kh1 {[%clk 0:02:43]}  Nb6 {[%clk 0:02:41]} 14. Bd3 {[%clk 0:02:43]}  Bg6 {[%clk 0:02:37]} 15. Be3 {[%clk 0:02:37]}  c5 {[%clk 0:02:32]} 16. Rb5 {[%clk 0:02:23]}  cxd4 {[%clk 0:02:30]} 17. cxd4 {[%clk 0:02:22]}  Nc4 {[%clk 0:02:30]} 18. Bxc4 {[%clk 0:02:20]}  Qxc4 {[%clk 0:02:28]} 19. Rbb1 {[%clk 0:02:07]}  Rfc8 {[%clk 0:02:18]} 20. Rfc1 {[%clk 0:02:05]}  Ba3 {[%clk 0:02:04]} 21. Re1 {[%clk 0:02:02]}  b6 {[%clk 0:01:56]} 22. Rb3 {[%clk 0:01:56]}  Be7 {[%clk 0:01:49]} 23. c3 {[%clk 0:01:54]}  Rc6 {[%clk 0:01:45]} 24. Qb2 {[%clk 0:01:49]}  Rac8 {[%clk 0:01:42]} 25. Bd2 {[%clk 0:01:45]}  Qd3 {[%clk 0:01:35]} 26. a4 {[%clk 0:01:34]}  Be4 {[%clk 0:01:29]} 27. Re3 {[%clk 0:01:24]}  Qa6 {[%clk 0:01:22]} 28. Qa1 {[%clk 0:01:19]}  Rc4 {[%clk 0:01:11]} 29. a5 {[%clk 0:01:19]}  b5 {[%clk 0:01:10]} 30. Qb2 {[%clk 0:01:14]}  Rb8 {[%clk 0:00:57]} 31. Re1 {[%clk 0:01:08]}  Qxa5 {[%clk 0:00:50]} 32. Bg5 {[%clk 0:01:05]}  Bf8 {[%clk 0:00:40]} 33. Nd2 {[%clk 0:00:59]}  Ra4 {[%clk 0:00:33]} 34. Nxe4 {[%clk 0:00:53]}  dxe4 {[%clk 0:00:33]} 35. Bd2 {[%clk 0:00:51]}  Ra2 {[%clk 0:00:32]} 36. Qc1 {[%clk 0:00:49]}  Qa4 {[%clk 0:00:18]} 37. Rb2 {[%clk 0:00:46]}  Rxb2 {[%clk 0:00:15]} 38. Qxb2 {[%clk 0:00:47]}  b4 {[%clk 0:00:12]} 39. c4 {[%clk 0:00:41]}  b3 {[%clk 0:00:12]} 40. c5 {[%clk 0:00:40]}  Qa2 {[%clk 0:00:10]} 41. Rb1 {[%clk 0:00:40]}  Qxb2 {[%clk 0:00:10]} 42. Rxb2 {[%clk 0:00:41]}  Be7 {[%clk 0:00:10]} 43. Kg1 {[%clk 0:00:36]}  Bd8 {[%clk 0:00:10]} 44. Kf1 {[%clk 0:00:32]}  a5 {[%clk 0:00:10]} 45. Rb1 {[%clk 0:00:32]}  a4 {[%clk 0:00:10]} 46. Bc1 {[%clk 0:00:32]}  Ba5 {[%clk 0:00:09]} 47. Ba3 {[%clk 0:00:31]}  Bb4 {[%clk 0:00:07]} 48. Bc1 {[%clk 0:00:31]}  a3 {[%clk 0:00:06]} 49. Rxb3 {[%clk 0:00:29]}  a2 {[%clk 0:00:05]} 50. Bb2 {[%clk 0:00:29]}  Kf8 {[%clk 0:00:02]} 51. c6 {[%clk 0:00:25]}  Ke8 {[%clk 0:00:02]} 52. c7 {[%clk 0:00:25]}  Rc8 {[%clk 0:00:02]} 53. Rxb4 {[%clk 0:00:25]}  Rxc7 {[%clk 0:00:02]} 54. Ra4 {[%clk 0:00:26]}  Rc2 {[%clk 0:00:01]} 55. Rxa2 {[%clk 0:00:26]}  Kd7 {[%clk 0:00:02]} 56. Ra7+ {[%clk 0:00:20]}  Kc6 {[%clk 0:00:02]} 57. Ba3 {[%clk 0:00:21]}  Kd5 {[%clk 0:00:02]} 58. Bc5 {[%clk 0:00:21]}  Kc4 {[%clk 0:00:03]} 59. Ra3 {[%clk 0:00:21]}  h5 {[%clk 0:00:02]} 60. Re3 {[%clk 0:00:21]}  g5 {[%clk 0:00:02]} 61. Rxe4 {[%clk 0:00:19]}  g4 {[%clk 0:00:03]} 62. hxg4 {[%clk 0:00:19]}  h4 {[%clk 0:00:03]} 63. g5 {[%clk 0:00:18]}  Kd3 {[%clk 0:00:04]} 64. Re3+ {[%clk 0:00:18]}  Kc4 {[%clk 0:00:04]} 65. g3 {[%clk 0:00:18]}  h3 {[%clk 0:00:03]} 66. Rf3 {[%clk 0:00:17]}  Rc1+ {[%clk 0:00:04]} 67. Ke2 {[%clk 0:00:18]}  h2 {[%clk 0:00:04]} 68. Ba3 {[%clk 0:00:16]}  Ra1 {[%clk 0:00:03]} 69. Bb2 {[%clk 0:00:16]}  Rb1 {[%clk 0:00:03]} 70. Rc3+ {[%clk 0:00:12]}  Kxd4 {[%clk 0:00:01]} 71. Rc1+ {[%clk 0:00:10]}  Rxb2+ {[%clk 0:00:01]} 72. Kf3 {[%clk 0:00:11]} 1-0


[Site "https://www.chess.com"]

[Event "Titled Tuesday Blitz April 18 Early 2023"]
[White "Faci, Fadil"]
[Black "Aggelis, Nikolaos"]
[WhiteFideId "4645162"]
[BlackFideId "4213220"]
[WhiteElo "2145"]
[BlackElo "2189"]
[Result "1/2-1/2"]
[Round "02"]
[TimeControl "180+2"]
[Date "2023.04.18"]
[WhiteClock "0:00:41"]
[BlackClock "0:00:32"]

1. e4 {[%clk 0:03:00]}  c6 {[%clk 0:02:55]} 2. d4 {[%clk 0:03:00]}  d5 {[%clk 0:02:56]} 3. Nc3 {[%clk 0:03:00]}  dxe4 {[%clk 0:02:56]} 4. Nxe4 {[%clk 0:03:01]}  Nf6 {[%clk 0:02:56]} 5. Nxf6+ {[%clk 0:03:01]}  exf6 {[%clk 0:02:57]} 6. Bf4 {[%clk 0:03:01]}  Bd6 {[%clk 0:02:55]} 7. Bxd6 {[%clk 0:03:01]}  Qxd6 {[%clk 0:02:56]} 8. Nf3 {[%clk 0:03:01]}  O-O {[%clk 0:02:56]} 9. Be2 {[%clk 0:03:01]}  h5 {[%clk 0:02:53]} 10. c3 {[%clk 0:03:00]}  Re8 {[%clk 0:02:53]} 11. O-O {[%clk 0:02:59]}  Nd7 {[%clk 0:02:45]} 12. Re1 {[%clk 0:02:59]}  Nf8 {[%clk 0:02:44]} 13. Qd2 {[%clk 0:02:59]}  Bf5 {[%clk 0:02:34]} 14. Bd3 {[%clk 0:02:57]}  Bxd3 {[%clk 0:02:30]} 15. Qxd3 {[%clk 0:02:57]}  Ne6 {[%clk 0:02:19]} 16. Qf5 {[%clk 0:02:54]}  Qf4 {[%clk 0:02:16]} 17. Qxf4 {[%clk 0:02:48]}  Nxf4 {[%clk 0:02:14]} 18. Rxe8+ {[%clk 0:02:46]}  Rxe8 {[%clk 0:02:14]} 19. Re1 {[%clk 0:02:47]}  Kf8 {[%clk 0:02:10]} 20. Rxe8+ {[%clk 0:02:46]}  Kxe8 {[%clk 0:02:11]} 21. Ne1 {[%clk 0:02:40]}  Ke7 {[%clk 0:02:07]} 22. g3 {[%clk 0:02:40]}  Nd5 {[%clk 0:02:01]} 23. f3 {[%clk 0:02:41]}  f5 {[%clk 0:02:00]} 24. Kf2 {[%clk 0:02:40]}  g5 {[%clk 0:01:59]} 25. Nd3 {[%clk 0:02:35]}  b5 {[%clk 0:01:50]} 26. Ne5 {[%clk 0:02:28]}  c5 {[%clk 0:01:37]} 27. dxc5 {[%clk 0:02:27]}  Ke6 {[%clk 0:01:37]} 28. Nc6 {[%clk 0:02:23]}  a6 {[%clk 0:01:37]} 29. Nd4+ {[%clk 0:02:10]}  Ke5 {[%clk 0:01:37]} 30. Nc6+ {[%clk 0:02:11]}  Ke6 {[%clk 0:01:37]} 31. Nd4+ {[%clk 0:02:11]}  Ke5 {[%clk 0:01:37]} 32. a3 {[%clk 0:01:34]}  f4 {[%clk 0:01:37]} 33. Nc6+ {[%clk 0:01:32]}  Kf5 {[%clk 0:01:35]} 34. Nb4 {[%clk 0:01:27]}  Nc7 {[%clk 0:01:34]} 35. Nd3 {[%clk 0:01:27]}  fxg3+ {[%clk 0:01:34]} 36. hxg3 {[%clk 0:01:28]}  Ke6 {[%clk 0:01:29]} 37. Nb4 {[%clk 0:01:18]}  Ke5 {[%clk 0:01:26]} 38. Ke3 {[%clk 0:01:17]}  h4 {[%clk 0:01:26]} 39. gxh4 {[%clk 0:01:12]}  gxh4 {[%clk 0:01:26]} 40. Nd3+ {[%clk 0:01:11]}  Kd5 {[%clk 0:01:26]} 41. b3 {[%clk 0:01:11]}  a5 {[%clk 0:01:24]} 42. Kf4 {[%clk 0:00:55]}  a4 {[%clk 0:01:23]} 43. bxa4 {[%clk 0:00:53]}  bxa4 {[%clk 0:01:24]} 44. Nb2 {[%clk 0:00:53]}  Nb5 {[%clk 0:01:12]} 45. Nxa4 {[%clk 0:00:52]}  Nxa3 {[%clk 0:01:12]} 46. Kg4 {[%clk 0:00:52]}  Kc6 {[%clk 0:01:00]} 47. Kxh4 {[%clk 0:00:53]}  Kb5 {[%clk 0:01:00]} 48. Nb2 {[%clk 0:00:53]}  Kxc5 {[%clk 0:00:59]} 49. Kg5 {[%clk 0:00:53]}  Nb1 {[%clk 0:00:58]} 50. Nd1 {[%clk 0:00:49]}  Nd2 {[%clk 0:00:55]} 51. f4 {[%clk 0:00:47]}  Kd5 {[%clk 0:00:36]} 52. Kf6 {[%clk 0:00:45]}  Ke4 {[%clk 0:00:33]} 53. Kxf7 {[%clk 0:00:45]}  Kxf4 {[%clk 0:00:33]} 54. Ke6 {[%clk 0:00:46]}  Ke4 {[%clk 0:00:31]} 55. Kd6 {[%clk 0:00:44]}  Kd3 {[%clk 0:00:31]} 56. Kd5 {[%clk 0:00:43]}  Kc2 {[%clk 0:00:32]} 57. c4 {[%clk 0:00:41]}  Nxc4 {[%clk 0:00:32]} 1/2-1/2


[Site "https://www.chess.com"]

[Event "Titled Tuesday Blitz April 18 Early 2023"]
[White "Davidson, Kevin"]
[Black "Sarana, Alexey"]
[WhiteFideId "2056810"]
[BlackFideId "24133795"]
[WhiteElo "2151"]
[BlackElo "2714"]
[Result "0-1"]
[Round "02"]
[TimeControl "180+2"]
[Date "2023.04.18"]
[WhiteClock "0:00:13"]
[BlackClock "0:02:08"]

1. e4 {[%clk 0:03:00]}  c5 {[%clk 0:03:00]} 2. Nf3 {[%clk 0:03:00]}  d6 {[%clk 0:03:01]} 3. d4 {[%clk 0:03:00]}  cxd4 {[%clk 0:03:01]} 4. Nxd4 {[%clk 0:03:01]}  Nf6 {[%clk 0:03:02]} 5. Nc3 {[%clk 0:03:01]}  a6 {[%clk 0:03:03]} 6. h3 {[%clk 0:03:01]}  b5 {[%clk 0:03:02]} 7. a4 {[%clk 0:03:00]}  b4 {[%clk 0:03:02]} 8. Nd5 {[%clk 0:03:00]}  e6 {[%clk 0:03:03]} 9. Nxf6+ {[%clk 0:02:59]}  Qxf6 {[%clk 0:03:04]} 10. Bd3 {[%clk 0:02:56]}  Be7 {[%clk 0:03:02]} 11. O-O {[%clk 0:02:51]}  O-O {[%clk 0:03:03]} 12. Be3 {[%clk 0:02:50]}  Bb7 {[%clk 0:03:02]} 13. f4 {[%clk 0:02:10]}  Nc6 {[%clk 0:02:57]} 14. Nxc6 {[%clk 0:02:01]}  Bxc6 {[%clk 0:02:57]} 15. Qd2 {[%clk 0:02:02]}  Qxb2 {[%clk 0:02:49]} 16. Rfb1 {[%clk 0:01:55]}  Qc3 {[%clk 0:02:49]} 17. Qxc3 {[%clk 0:01:54]}  bxc3 {[%clk 0:02:50]} 18. Rb6 {[%clk 0:01:54]}  Rfc8 {[%clk 0:02:39]} 19. Bxa6 {[%clk 0:01:45]}  Rxa6 {[%clk 0:02:32]} 20. Rxa6 {[%clk 0:01:45]}  Bxe4 {[%clk 0:02:33]} 21. Ra2 {[%clk 0:01:38]}  g5 {[%clk 0:02:15]} 22. fxg5 {[%clk 0:01:24]}  e5 {[%clk 0:02:15]} 23. Ra7 {[%clk 0:00:59]}  Bf8 {[%clk 0:02:13]} 24. a5 {[%clk 0:00:55]}  d5 {[%clk 0:02:13]} 25. a6 {[%clk 0:00:18]}  d4 {[%clk 0:02:12]} 26. Bc1 {[%clk 0:00:17]}  Bc5 {[%clk 0:02:12]} 27. Rd7 {[%clk 0:00:13]}  Bc6 {[%clk 0:02:08]} 0-1


[Site "https://www.chess.com"]

[Event "Titled Tuesday Blitz April 18 Early 2023"]
[White "Grigoriants, Sergey"]
[Black "KorolDimitriy75"]
[WhiteFideId "4130804"]
[WhiteElo "2502"]
[BlackElo "2402"]
[Result "1-0"]
[Round "02"]
[TimeControl "180+2"]
[Date "2023.04.18"]
[WhiteClock "0:00:05"]
[BlackClock "0:00:01"]

1. d4 {[%clk 0:02:54]}  Nf6 {[%clk 0:02:59]} 2. c4 {[%clk 0:02:54]}  c5 {[%clk 0:02:59]} 3. d5 {[%clk 0:02:54]}  b5 {[%clk 0:02:59]} 4. Qc2 {[%clk 0:02:54]}  bxc4 {[%clk 0:02:59]} 5. e4 {[%clk 0:02:54]}  g6 {[%clk 0:02:58]} 6. Nf3 {[%clk 0:02:49]}  d6 {[%clk 0:02:57]} 7. Nc3 {[%clk 0:02:49]}  Bg7 {[%clk 0:02:57]} 8. Nd2 {[%clk 0:02:45]}  O-O {[%clk 0:02:56]} 9. Nxc4 {[%clk 0:02:46]}  Nbd7 {[%clk 0:02:56]} 10. Be2 {[%clk 0:02:44]}  Nb6 {[%clk 0:02:57]} 11. O-O {[%clk 0:02:25]}  e6 {[%clk 0:02:41]} 12. dxe6 {[%clk 0:01:53]}  Bxe6 {[%clk 0:02:42]} 13. Ne3 {[%clk 0:01:54]}  d5 {[%clk 0:02:00]} 14. exd5 {[%clk 0:01:21]}  Nfxd5 {[%clk 0:02:00]} 15. Rd1 {[%clk 0:01:15]}  Nxe3 {[%clk 0:01:40]} 16. Bxe3 {[%clk 0:01:14]}  Qe7 {[%clk 0:01:33]} 17. Bf3 {[%clk 0:01:00]}  Rac8 {[%clk 0:01:29]} 18. Ne4 {[%clk 0:00:44]}  Nc4 {[%clk 0:01:21]} 19. Bg5 {[%clk 0:00:41]}  f6 {[%clk 0:00:56]} 20. Bf4 {[%clk 0:00:41]}  g5 {[%clk 0:00:29]} 21. Bd6 {[%clk 0:00:41]}  Nxd6 {[%clk 0:00:28]} 22. Nxd6 {[%clk 0:00:42]}  Rc7 {[%clk 0:00:20]} 23. Nf5 {[%clk 0:00:38]}  Qf7 {[%clk 0:00:14]} 24. Rd6 {[%clk 0:00:36]}  Kh8 {[%clk 0:00:09]} 25. Bh5 {[%clk 0:00:14]}  Bxf5 {[%clk 0:00:06]} 26. Qxf5 {[%clk 0:00:07]}  Qxh5 {[%clk 0:00:07]} 27. Rad1 {[%clk 0:00:07]}  Qg6 {[%clk 0:00:05]} 28. Qd5 {[%clk 0:00:08]}  Rcf7 {[%clk 0:00:05]} 29. h4 {[%clk 0:00:07]}  gxh4 {[%clk 0:00:05]} 30. Qxc5 {[%clk 0:00:08]}  f5 {[%clk 0:00:05]} 31. Rxg6 {[%clk 0:00:07]}  hxg6 {[%clk 0:00:05]} 32. Qc4 {[%clk 0:00:07]}  Rf6 {[%clk 0:00:04]} 33. Qxh4+ {[%clk 0:00:07]}  Kg8 {[%clk 0:00:05]} 34. Qc4+ {[%clk 0:00:07]}  Kh7 {[%clk 0:00:05]} 35. Rd7 {[%clk 0:00:08]}  f4 {[%clk 0:00:02]} 36. Qc7 {[%clk 0:00:07]}  Rg8 {[%clk 0:00:02]} 37. Qxa7 {[%clk 0:00:07]}  Kh6 {[%clk 0:00:02]} 38. Qc5 {[%clk 0:00:05]}  g5 {[%clk 0:00:02]} 39. Qd5 {[%clk 0:00:04]}  Rgf8 {[%clk 0:00:01]} 40. g4 {[%clk 0:00:04]}  fxg3 {[%clk 0:00:01]} 41. Qh1+ {[%clk 0:00:05]}  Kg6 {[%clk 0:00:01]} 42. Qe4+ {[%clk 0:00:05]} 1-0


[Site "https://www.chess.com"]

[Event "Titled Tuesday Blitz April 18 Early 2023"]
[White "Harsh Suresh"]
[Black "Koutsin, Sergey"]
[WhiteFideId "45018464"]
[BlackFideId "14101483"]
[WhiteElo "2227"]
[BlackElo "2381"]
[Result "1-0"]
[Round "02"]
[TimeControl "180+2"]
[Date "2023.04.18"]
[WhiteClock "0:00:05"]
[BlackClock "0:00:05"]

1. e4 {[%clk 0:03:00]}  e6 {[%clk 0:03:00]} 2. d4 {[%clk 0:03:00]}  d5 {[%clk 0:03:00]} 3. Nd2 {[%clk 0:03:01]}  c5 {[%clk 0:02:59]} 4. Ngf3 {[%clk 0:02:59]}  Nc6 {[%clk 0:02:58]} 5. Bb5 {[%clk 0:02:57]}  a6 {[%clk 0:02:48]} 6. Bxc6+ {[%clk 0:02:54]}  bxc6 {[%clk 0:02:48]} 7. O-O {[%clk 0:02:55]}  Nf6 {[%clk 0:02:45]} 8. Re1 {[%clk 0:02:53]}  Be7 {[%clk 0:02:44]} 9. b3 {[%clk 0:02:48]}  cxd4 {[%clk 0:02:41]} 10. Nxd4 {[%clk 0:02:48]}  Bb7 {[%clk 0:02:41]} 11. e5 {[%clk 0:02:39]}  Nd7 {[%clk 0:02:40]} 12. Bb2 {[%clk 0:02:40]}  O-O {[%clk 0:02:37]} 13. N4f3 {[%clk 0:02:37]}  c5 {[%clk 0:02:35]} 14. Qe2 {[%clk 0:02:30]}  a5 {[%clk 0:02:35]} 15. a4 {[%clk 0:02:29]}  Ba6 {[%clk 0:02:33]} 16. c4 {[%clk 0:02:28]}  Nb8 {[%clk 0:02:12]} 17. Rad1 {[%clk 0:02:14]}  Nc6 {[%clk 0:02:12]} 18. Qe3 {[%clk 0:02:12]}  d4 {[%clk 0:02:11]} 19. Qe4 {[%clk 0:02:11]}  Bb7 {[%clk 0:02:09]} 20. Ba3 {[%clk 0:02:05]}  Qb6 {[%clk 0:02:08]} 21. Qd3 {[%clk 0:02:00]}  Nb4 {[%clk 0:02:03]} 22. Bxb4 {[%clk 0:02:00]}  Qxb4 {[%clk 0:02:03]} 23. Ne4 {[%clk 0:01:59]}  Rab8 {[%clk 0:01:52]} 24. Rb1 {[%clk 0:01:52]}  Rfd8 {[%clk 0:01:46]} 25. Nfg5 {[%clk 0:01:49]}  Bxe4 {[%clk 0:01:10]} 26. Nxe4 {[%clk 0:01:50]}  Rb6 {[%clk 0:01:10]} 27. Red1 {[%clk 0:01:44]}  Rdb8 {[%clk 0:01:10]} 28. f4 {[%clk 0:01:37]}  Qa3 {[%clk 0:01:07]} 29. Nd2 {[%clk 0:01:36]}  g6 {[%clk 0:01:04]} 30. g3 {[%clk 0:01:31]}  Qb4 {[%clk 0:01:01]} 31. Kg2 {[%clk 0:01:17]}  Qc3 {[%clk 0:00:58]} 32. Ne4 {[%clk 0:01:16]}  Qxd3 {[%clk 0:00:57]} 33. Rxd3 {[%clk 0:01:17]}  Rb4 {[%clk 0:00:57]} 34. Nd2 {[%clk 0:01:16]}  h5 {[%clk 0:00:53]} 35. Kf3 {[%clk 0:01:05]}  Kg7 {[%clk 0:00:54]} 36. h4 {[%clk 0:01:02]}  Kf8 {[%clk 0:00:54]} 37. Ke4 {[%clk 0:01:01]}  Ke8 {[%clk 0:00:54]} 38. Rf3 {[%clk 0:01:01]}  Kd7 {[%clk 0:00:54]} 39. Kd3 {[%clk 0:01:02]}  Kc6 {[%clk 0:00:50]} 40. Rff1 {[%clk 0:01:01]}  R8b7 {[%clk 0:00:48]} 41. Kc2 {[%clk 0:01:00]}  Rb8 {[%clk 0:00:48]} 42. Rb2 {[%clk 0:01:00]}  Rd8 {[%clk 0:00:47]} 43. Rfb1 {[%clk 0:01:00]}  Bf8 {[%clk 0:00:41]} 44. Ne4 {[%clk 0:01:00]}  Be7 {[%clk 0:00:41]} 45. Nf2 {[%clk 0:01:00]}  Rb7 {[%clk 0:00:38]} 46. Nd3 {[%clk 0:01:01]}  Rh8 {[%clk 0:00:37]} 47. Kd2 {[%clk 0:00:57]}  Rbb8 {[%clk 0:00:37]} 48. Ne1 {[%clk 0:00:58]}  Rb7 {[%clk 0:00:38]} 49. Nc2 {[%clk 0:00:58]}  Rbb8 {[%clk 0:00:37]} 50. Na3 {[%clk 0:00:59]}  Rb7 {[%clk 0:00:37]} 51. Nb5 {[%clk 0:00:59]}  Rbb8 {[%clk 0:00:35]} 52. Kd3 {[%clk 0:01:00]}  Rb7 {[%clk 0:00:35]} 53. Rg2 {[%clk 0:01:00]}  Rbb8 {[%clk 0:00:35]} 54. Rh1 {[%clk 0:01:00]}  Rh7 {[%clk 0:00:35]} 55. Ke4 {[%clk 0:00:57]}  Rbh8 {[%clk 0:00:34]} 56. Kf3 {[%clk 0:00:57]}  Kb6 {[%clk 0:00:34]} 57. Rgh2 {[%clk 0:00:57]}  Kc6 {[%clk 0:00:34]} 58. Na3 {[%clk 0:00:51]}  Kb6 {[%clk 0:00:34]} 59. Rh3 {[%clk 0:00:50]}  Kc6 {[%clk 0:00:34]} 60. Nb5 {[%clk 0:00:50]}  Kb6 {[%clk 0:00:34]} 61. R1h2 {[%clk 0:00:44]}  Kc6 {[%clk 0:00:34]} 62. Rb2 {[%clk 0:00:40]}  Kb6 {[%clk 0:00:34]} 63. Rd2 {[%clk 0:00:41]}  Kc6 {[%clk 0:00:35]} 64. Rdh2 {[%clk 0:00:41]}  Kb6 {[%clk 0:00:35]} 65. g4 {[%clk 0:00:42]}  hxg4+ {[%clk 0:00:35]} 66. Kxg4 {[%clk 0:00:43]}  Rh5 {[%clk 0:00:35]} 67. Na3 {[%clk 0:00:36]}  Kc6 {[%clk 0:00:35]} 68. Nc2 {[%clk 0:00:36]}  Kb6 {[%clk 0:00:30]} 69. Ne1 {[%clk 0:00:36]}  Kc6 {[%clk 0:00:30]} 70. Nd3 {[%clk 0:00:36]}  Rb8 {[%clk 0:00:29]} 71. Nf2 {[%clk 0:00:36]}  Rd8 {[%clk 0:00:27]} 72. Ne4 {[%clk 0:00:35]}  Rdh8 {[%clk 0:00:22]} 73. Ng3 {[%clk 0:00:35]}  R5h7 {[%clk 0:00:20]} 74. h5 {[%clk 0:00:34]}  gxh5+ {[%clk 0:00:19]} 75. Rxh5 {[%clk 0:00:35]}  Rxh5 {[%clk 0:00:19]} 76. Rxh5 {[%clk 0:00:36]}  Rg8+ {[%clk 0:00:18]} 77. Kf3 {[%clk 0:00:36]}  Kd7 {[%clk 0:00:14]} 78. Rh7 {[%clk 0:00:36]}  Ke8 {[%clk 0:00:14]} 79. Ne4 {[%clk 0:00:30]}  Kf8 {[%clk 0:00:13]} 80. Rh1 {[%clk 0:00:22]}  Ke8 {[%clk 0:00:13]} 81. Nf2 {[%clk 0:00:20]}  Kd7 {[%clk 0:00:13]} 82. Nd3 {[%clk 0:00:20]}  Ke8 {[%clk 0:00:12]} 83. Kf2 {[%clk 0:00:18]}  Kd7 {[%clk 0:00:12]} 84. Rg1 {[%clk 0:00:17]}  Rxg1 {[%clk 0:00:11]} 85. Kxg1 {[%clk 0:00:18]}  Ke8 {[%clk 0:00:11]} 86. Kg2 {[%clk 0:00:18]}  Kf8 {[%clk 0:00:12]} 87. Kf3 {[%clk 0:00:19]}  Kg7 {[%clk 0:00:12]} 88. Kg4 {[%clk 0:00:17]}  Kg6 {[%clk 0:00:12]} 89. Nf2 {[%clk 0:00:17]}  Bf8 {[%clk 0:00:12]} 90. Ne4 {[%clk 0:00:18]}  Be7 {[%clk 0:00:13]} 91. Ng3 {[%clk 0:00:18]}  Bf8 {[%clk 0:00:13]} 92. f5+ {[%clk 0:00:17]}  exf5+ {[%clk 0:00:12]} 93. Nxf5 {[%clk 0:00:18]}  Bg7 {[%clk 0:00:11]} 94. Nh4+ {[%clk 0:00:17]}  Kh6 {[%clk 0:00:11]} 95. Kf4 {[%clk 0:00:16]}  Kh5 {[%clk 0:00:10]} 96. Nf3 {[%clk 0:00:15]}  Bh6+ {[%clk 0:00:09]} 97. Ke4 {[%clk 0:00:15]}  Kg4 {[%clk 0:00:10]} 98. Ne1 {[%clk 0:00:15]}  Bf8 {[%clk 0:00:09]} 99. Nd3 {[%clk 0:00:16]}  Kg3 {[%clk 0:00:09]} 100. Kf5 {[%clk 0:00:09]}  Kf3 {[%clk 0:00:09]} 101. Kf6 {[%clk 0:00:10]}  Ke3 {[%clk 0:00:09]} 102. Kxf7 {[%clk 0:00:10]}  Kxd3 {[%clk 0:00:06]} 103. Kxf8 {[%clk 0:00:10]}  Kc3 {[%clk 0:00:07]} 104. e6 {[%clk 0:00:11]}  d3 {[%clk 0:00:07]} 105. e7 {[%clk 0:00:12]}  d2 {[%clk 0:00:08]} 106. e8=Q {[%clk 0:00:13]}  d1=Q {[%clk 0:00:09]} 107. Qb5 {[%clk 0:00:04]}  Qd6+ {[%clk 0:00:06]} 108. Kf7 {[%clk 0:00:04]}  Qf4+ {[%clk 0:00:04]} 109. Ke6 {[%clk 0:00:04]}  Qe4+ {[%clk 0:00:05]} 110. Kd6 {[%clk 0:00:05]}  Qd4+ {[%clk 0:00:05]} 111. Kc6 {[%clk 0:00:05]} 1-0


[Site "https://www.chess.com"]

[Event "Titled Tuesday Blitz April 18 Early 2023"]
[White "Prohaszka, Peter"]
[Black "LeoLV10"]
[WhiteFideId "726265"]
[WhiteElo "2626"]
[BlackElo "2386"]
[Result "1-0"]
[Round "02"]
[TimeControl "180+2"]
[Date "2023.04.18"]
[WhiteClock "0:00:41"]
[BlackClock "0:00:03"]

1. d4 {[%clk 0:03:00]}  Nf6 {[%clk 0:02:59]} 2. Bf4 {[%clk 0:02:56]}  d5 {[%clk 0:02:51]} 3. e3 {[%clk 0:02:55]}  e6 {[%clk 0:02:49]} 4. c4 {[%clk 0:02:54]}  c5 {[%clk 0:02:47]} 5. Nf3 {[%clk 0:02:53]}  Bd6 {[%clk 0:02:44]} 6. dxc5 {[%clk 0:02:47]}  Bxc5 {[%clk 0:02:44]} 7. Nc3 {[%clk 0:02:47]}  Nc6 {[%clk 0:02:44]} 8. cxd5 {[%clk 0:02:47]}  Nxd5 {[%clk 0:02:43]} 9. Nxd5 {[%clk 0:02:45]}  Qxd5 {[%clk 0:02:43]} 10. Qxd5 {[%clk 0:02:44]}  exd5 {[%clk 0:02:44]} 11. O-O-O {[%clk 0:02:39]}  Be6 {[%clk 0:02:43]} 12. Kb1 {[%clk 0:02:34]}  O-O {[%clk 0:02:41]} 13. Bd3 {[%clk 0:02:28]}  h6 {[%clk 0:02:39]} 14. a3 {[%clk 0:02:27]}  Rfd8 {[%clk 0:02:36]} 15. Rc1 {[%clk 0:02:15]}  Bb6 {[%clk 0:02:35]} 16. Ne5 {[%clk 0:02:15]}  Nxe5 {[%clk 0:02:32]} 17. Bxe5 {[%clk 0:02:16]}  d4 {[%clk 0:02:33]} 18. e4 {[%clk 0:02:13]}  Rac8 {[%clk 0:02:27]} 19. Bf4 {[%clk 0:02:07]}  f6 {[%clk 0:02:20]} 20. h4 {[%clk 0:02:00]}  h5 {[%clk 0:02:04]} 21. f3 {[%clk 0:01:59]}  Kf7 {[%clk 0:02:03]} 22. Rxc8 {[%clk 0:01:45]}  Rxc8 {[%clk 0:02:03]} 23. Rc1 {[%clk 0:01:44]}  Rxc1+ {[%clk 0:01:35]} 24. Kxc1 {[%clk 0:01:45]}  Bd8 {[%clk 0:01:24]} 25. Kd2 {[%clk 0:01:34]}  g5 {[%clk 0:01:05]} 26. Bg3 {[%clk 0:01:30]}  Ba5+ {[%clk 0:00:54]} 27. b4 {[%clk 0:01:30]}  Bb6 {[%clk 0:00:54]} 28. Bb5 {[%clk 0:01:20]}  Ba2 {[%clk 0:00:23]} 29. Kc2 {[%clk 0:01:07]}  Ke7 {[%clk 0:00:17]} 30. Be2 {[%clk 0:01:01]}  Bf7 {[%clk 0:00:07]} 31. Kd3 {[%clk 0:00:56]}  Ba2 {[%clk 0:00:06]} 32. Bd1 {[%clk 0:00:50]}  Bb1+ {[%clk 0:00:04]} 33. Bc2 {[%clk 0:00:50]}  Ba2 {[%clk 0:00:02]} 34. Bf2 {[%clk 0:00:49]}  Bf7 {[%clk 0:00:03]} 35. hxg5 {[%clk 0:00:46]}  fxg5 {[%clk 0:00:03]} 36. Bxd4 {[%clk 0:00:46]}  Bc7 {[%clk 0:00:04]} 37. Bxa7 {[%clk 0:00:45]}  Be6 {[%clk 0:00:02]} 38. Be3 {[%clk 0:00:44]}  g4 {[%clk 0:00:02]} 39. Bd1 {[%clk 0:00:43]}  g3 {[%clk 0:00:02]} 40. Bg5+ {[%clk 0:00:42]}  Kf7 {[%clk 0:00:01]} 41. f4 {[%clk 0:00:42]}  Bg4 {[%clk 0:00:01]} 42. Bxg4 {[%clk 0:00:42]}  hxg4 {[%clk 0:00:02]} 43. e5 {[%clk 0:00:40]}  Ke6 {[%clk 0:00:02]} 44. Ke4 {[%clk 0:00:40]}  Kf7 {[%clk 0:00:01]} 45. Bh4 {[%clk 0:00:40]}  Bb6 {[%clk 0:00:02]} 46. Bxg3 {[%clk 0:00:41]}  Bg1 {[%clk 0:00:02]} 47. f5 {[%clk 0:00:41]}  Ba7 {[%clk 0:00:03]} 48. e6+ {[%clk 0:00:41]} 1-0


[Site "https://www.chess.com"]